[Event "Titled Tuesday Blitz August 31 2021"]
[White "Assaubayeva, Bibisara"]
[Black "Manukyan, Artyom"]
[WhiteFideId "13708694"]
[BlackFideId "13305786"]
[WhiteElo "2232"]
[BlackElo "2034"]
[Result "1-0"]
[Round "07"]
[TimeControl "180+1"]
[Date "2021.08.31"]
[WhiteClock "0:01:25"]
[BlackClock "0:00:09"]

1. d4 {[%clk 0:03:00]}  d5 {[%clk 0:02:55]} 2. c4 {[%clk 0:03:01]}  e6 {[%clk 0:02:55]} 3. Nc3 {[%clk 0:03:00]}  Nf6 {[%clk 0:02:56]} 4. cxd5 {[%clk 0:03:01]}  exd5 {[%clk 0:02:57]} 5. Bg5 {[%clk 0:03:01]}  c6 {[%clk 0:02:58]} 6. e3 {[%clk 0:03:01]}  Qb6 {[%clk 0:02:58]} 7. Qc2 {[%clk 0:02:54]}  Ne4 {[%clk 0:02:58]} 8. Bf4 {[%clk 0:02:46]}  Bf5 {[%clk 0:02:57]} 9. Bd3 {[%clk 0:02:46]}  Na6 {[%clk 0:02:55]} 10. a3 {[%clk 0:02:45]}  Qa5 {[%clk 0:02:55]} 11. Rb1 {[%clk 0:02:39]}  Nxc3 {[%clk 0:01:47]} 12. bxc3 {[%clk 0:02:35]}  Bxd3 {[%clk 0:01:47]} 13. Qxd3 {[%clk 0:02:36]}  Qxa3 {[%clk 0:01:47]} 14. Rxb7 {[%clk 0:02:27]}  Nb4 {[%clk 0:01:07]} 15. Qb1 {[%clk 0:01:50]}  Qxc3+ {[%clk 0:01:06]} 16. Kf1 {[%clk 0:01:50]}  a5 {[%clk 0:00:36]} 17. Ne2 {[%clk 0:01:48]}  Qd3 {[%clk 0:00:11]} 18. Rxb4 {[%clk 0:01:30]}  axb4 {[%clk 0:00:12]} 19. Qxd3 {[%clk 0:01:30]}  Ra1+ {[%clk 0:00:13]} 20. Nc1 {[%clk 0:01:30]}  Rxc1+ {[%clk 0:00:13]} 21. Ke2 {[%clk 0:01:31]}  Rg1 {[%clk 0:00:14]} 22. Rxg1 {[%clk 0:01:30]}  Be7 {[%clk 0:00:07]} 23. Rc1 {[%clk 0:01:27]}  O-O {[%clk 0:00:07]} 24. Rxc6 {[%clk 0:01:27]}  Ra8 {[%clk 0:00:07]} 25. Bd6 {[%clk 0:01:27]}  h5 {[%clk 0:00:06]} 26. Bxe7 {[%clk 0:01:27]}  Ra2+ {[%clk 0:00:07]} 27. Kf3 {[%clk 0:01:27]}  Rxf2+ {[%clk 0:00:08]} 28. Kxf2 {[%clk 0:01:27]}  g5 {[%clk 0:00:09]} 29. Bf6 {[%clk 0:01:25]} 1-0


[Site "https://www.chess.com"]

[Event "Titled Tuesday Blitz August 31 2021"]
[White "Baches Garcia, Guillermo"]
[Black "Erdogdu, Mert"]
[WhiteFideId "2209764"]
[BlackFideId "6301495"]
[WhiteElo "2518"]
[BlackElo "2485"]
[Result "0-1"]
[Round "07"]
[TimeControl "180+1"]
[Date "2021.08.31"]
[WhiteClock "0:00:06"]
[BlackClock "0:00:12"]

1. e4 {[%clk 0:03:00]}  c5 {[%clk 0:03:00]} 2. Nf3 {[%clk 0:03:00]}  d6 {[%clk 0:03:00]} 3. d4 {[%clk 0:03:00]}  cxd4 {[%clk 0:03:01]} 4. Qxd4 {[%clk 0:03:01]}  Nc6 {[%clk 0:03:01]} 5. Bb5 {[%clk 0:03:00]}  Bd7 {[%clk 0:03:02]} 6. Qd3 {[%clk 0:03:01]}  Nf6 {[%clk 0:03:00]} 7. c4 {[%clk 0:03:00]}  g6 {[%clk 0:02:57]} 8. Nc3 {[%clk 0:02:59]}  Bg7 {[%clk 0:02:58]} 9. O-O {[%clk 0:02:58]}  O-O {[%clk 0:02:57]} 10. h3 {[%clk 0:02:59]}  Rc8 {[%clk 0:02:48]} 11. Be3 {[%clk 0:02:58]}  a6 {[%clk 0:02:40]} 12. Bxc6 {[%clk 0:02:57]}  Bxc6 {[%clk 0:02:39]} 13. Nd4 {[%clk 0:02:54]}  Nd7 {[%clk 0:02:35]} 14. Rac1 {[%clk 0:02:50]}  Nc5 {[%clk 0:02:33]} 15. Qb1 {[%clk 0:02:38]}  Bd7 {[%clk 0:02:17]} 16. Rfd1 {[%clk 0:02:31]}  f5 {[%clk 0:02:06]} 17. exf5 {[%clk 0:02:18]}  gxf5 {[%clk 0:02:06]} 18. b4 {[%clk 0:02:00]}  f4 {[%clk 0:02:02]} 19. bxc5 {[%clk 0:01:49]}  fxe3 {[%clk 0:02:02]} 20. fxe3 {[%clk 0:01:38]}  Rxc5 {[%clk 0:01:59]} 21. Qxb7 {[%clk 0:01:36]}  Rg5 {[%clk 0:01:43]} 22. Kh1 {[%clk 0:01:05]}  Rf2 {[%clk 0:01:33]} 23. Ne4 {[%clk 0:00:46]}  Rgxg2 {[%clk 0:01:10]} 24. Nxf2 {[%clk 0:00:46]}  Rxf2 {[%clk 0:01:09]} 25. Rg1 {[%clk 0:00:47]}  Kh8 {[%clk 0:01:05]} 26. Rg2 {[%clk 0:00:32]}  Rxg2 {[%clk 0:00:59]} 27. Qxg2 {[%clk 0:00:31]}  e5 {[%clk 0:00:55]} 28. Nc6 {[%clk 0:00:17]}  Qh4 {[%clk 0:00:46]} 29. Rb1 {[%clk 0:00:07]}  h5 {[%clk 0:00:29]} 30. Rb7 {[%clk 0:00:06]}  Bxc6 {[%clk 0:00:22]} 31. Qxc6 {[%clk 0:00:06]}  Qxh3+ {[%clk 0:00:23]} 32. Kg1 {[%clk 0:00:05]}  Qxe3+ {[%clk 0:00:23]} 33. Kh1 {[%clk 0:00:05]}  Qh3+ {[%clk 0:00:21]} 34. Kg1 {[%clk 0:00:05]}  Qg4+ {[%clk 0:00:22]} 35. Kh1 {[%clk 0:00:06]}  e4 {[%clk 0:00:20]} 36. Qd7 {[%clk 0:00:05]}  Qf3+ {[%clk 0:00:19]} 37. Kg1 {[%clk 0:00:05]}  Bd4+ {[%clk 0:00:19]} 38. Kh2 {[%clk 0:00:05]}  Be5+ {[%clk 0:00:13]} 39. Kg1 {[%clk 0:00:05]}  Qg3+ {[%clk 0:00:13]} 40. Kf1 {[%clk 0:00:05]}  Qf3+ {[%clk 0:00:12]} 41. Ke1 {[%clk 0:00:06]}  Bc3# {[%clk 0:00:12]} 0-1


[Site "https://www.chess.com"]

[Event "Titled Tuesday Blitz August 31 2021"]
[White "Csonka, Balazs"]
[Black "Tokman, Ariel"]
[WhiteFideId "742910"]
[BlackFideId "117420"]
[WhiteElo "2658"]
[BlackElo "2479"]
[Result "0-1"]
[Round "07"]
[TimeControl "180+1"]
[Date "2021.08.31"]
[WhiteClock "0:00:03"]
[BlackClock "0:00:05"]

1. d4 {[%clk 0:03:00]}  Nf6 {[%clk 0:02:58]} 2. c4 {[%clk 0:02:59]}  g6 {[%clk 0:02:58]} 3. Nc3 {[%clk 0:02:59]}  d5 {[%clk 0:02:58]} 4. cxd5 {[%clk 0:02:59]}  Nxd5 {[%clk 0:02:59]} 5. e4 {[%clk 0:02:59]}  Nxc3 {[%clk 0:03:00]} 6. bxc3 {[%clk 0:03:00]}  Bg7 {[%clk 0:03:00]} 7. Nf3 {[%clk 0:02:59]}  c5 {[%clk 0:03:01]} 8. Bb5+ {[%clk 0:03:00]}  Nc6 {[%clk 0:02:49]} 9. d5 {[%clk 0:02:58]}  a6 {[%clk 0:02:41]} 10. Be2 {[%clk 0:02:57]}  Bxc3+ {[%clk 0:02:34]} 11. Bd2 {[%clk 0:02:57]}  Bxd2+ {[%clk 0:02:18]} 12. Qxd2 {[%clk 0:02:55]}  Nd4 {[%clk 0:02:19]} 13. Nxd4 {[%clk 0:02:55]}  cxd4 {[%clk 0:02:20]} 14. Qxd4 {[%clk 0:02:54]}  Qa5+ {[%clk 0:02:16]} 15. Qd2 {[%clk 0:02:52]}  Qxd2+ {[%clk 0:02:16]} 16. Kxd2 {[%clk 0:02:53]}  e6 {[%clk 0:02:10]} 17. Rac1 {[%clk 0:02:41]}  exd5 {[%clk 0:02:07]} 18. exd5 {[%clk 0:02:42]}  Kd7 {[%clk 0:01:55]} 19. Kc3 {[%clk 0:02:39]}  Kd6 {[%clk 0:01:53]} 20. Kd4 {[%clk 0:02:39]}  Re8 {[%clk 0:01:49]} 21. Bd3 {[%clk 0:02:35]}  Bd7 {[%clk 0:01:48]} 22. h4 {[%clk 0:02:27]}  Re5 {[%clk 0:01:43]} 23. Be4 {[%clk 0:02:18]}  Rae8 {[%clk 0:01:40]} 24. Bf3 {[%clk 0:02:17]}  h5 {[%clk 0:01:40]} 25. Rb1 {[%clk 0:01:54]}  b5 {[%clk 0:01:35]} 26. a4 {[%clk 0:01:44]}  Rf5 {[%clk 0:01:30]} 27. axb5 {[%clk 0:01:43]}  Rf4+ {[%clk 0:01:29]} 28. Kc3 {[%clk 0:01:42]}  Bxb5 {[%clk 0:01:28]} 29. Rhe1 {[%clk 0:01:36]}  Rxe1 {[%clk 0:01:24]} 30. Rxe1 {[%clk 0:01:35]}  Rxh4 {[%clk 0:01:22]} 31. Be4 {[%clk 0:01:25]}  Rf4 {[%clk 0:01:14]} 32. f3 {[%clk 0:01:22]}  f5 {[%clk 0:00:57]} 33. Bc2 {[%clk 0:01:04]}  Kxd5 {[%clk 0:00:49]} 34. Bb3+ {[%clk 0:00:31]}  Bc4 {[%clk 0:00:48]} 35. Ra1 {[%clk 0:00:31]}  Bxb3 {[%clk 0:00:46]} 36. Ra5+ {[%clk 0:00:31]}  Ke6 {[%clk 0:00:22]} 37. Rxa6+ {[%clk 0:00:28]}  Kf7 {[%clk 0:00:21]} 38. Kxb3 {[%clk 0:00:25]}  h4 {[%clk 0:00:22]} 39. Ra7+ {[%clk 0:00:16]}  Kf6 {[%clk 0:00:22]} 40. Rh7 {[%clk 0:00:15]}  Kg5 {[%clk 0:00:12]} 41. Kc3 {[%clk 0:00:15]}  Ra4 {[%clk 0:00:12]} 42. Kd3 {[%clk 0:00:03]}  Ra2 {[%clk 0:00:12]} 43. f4+ {[%clk 0:00:04]}  Kxf4 {[%clk 0:00:05]} 44. Rxh4+ {[%clk 0:00:03]}  Kg3 {[%clk 0:00:04]} 45. Rh3+ {[%clk 0:00:02]}  Kg4 {[%clk 0:00:04]} 46. Rh6 {[%clk 0:00:02]}  g5 {[%clk 0:00:05]} 47. Rh2 {[%clk 0:00:01]}  Kg3 {[%clk 0:00:04]} 48. Rh5 {[%clk 0:00:01]}  Kg4 {[%clk 0:00:04]} 49. Rh2 {[%clk 0:00:01]}  f4 {[%clk 0:00:05]} 50. Ke4 {[%clk 0:00:01]}  Ra4+ {[%clk 0:00:04]} 51. Ke5 {[%clk 0:00:02]}  Kg3 {[%clk 0:00:05]} 52. Rh5 {[%clk 0:00:01]}  Ra5+ {[%clk 0:00:04]} 53. Kf6 {[%clk 0:00:01]}  Kxg2 {[%clk 0:00:05]} 54. Rxg5+ {[%clk 0:00:02]}  Rxg5 {[%clk 0:00:04]} 55. Kxg5 {[%clk 0:00:03]}  f3 {[%clk 0:00:05]} 0-1


[Site "https://www.chess.com"]

[Event "Titled Tuesday Blitz August 31 2021"]
[White "Dang, Hoang Son"]
[Black "Jovic, Stanoje"]
[WhiteFideId "12402435"]
[BlackFideId "905020"]
[WhiteElo "2248"]
[BlackElo "2286"]
[Result "1-0"]
[Round "07"]
[TimeControl "180+1"]
[Date "2021.08.31"]
[WhiteClock "0:01:47"]
[BlackClock "0:00:07"]

1. d4 {[%clk 0:03:00]}  Nf6 {[%clk 0:02:59]} 2. c4 {[%clk 0:03:01]}  e6 {[%clk 0:02:59]} 3. Nf3 {[%clk 0:03:01]}  b6 {[%clk 0:02:58]} 4. g3 {[%clk 0:03:00]}  Ba6 {[%clk 0:02:57]} 5. Qa4 {[%clk 0:02:59]}  Be7 {[%clk 0:02:53]} 6. Bg2 {[%clk 0:02:58]}  O-O {[%clk 0:02:51]} 7. O-O {[%clk 0:02:57]}  d5 {[%clk 0:02:50]} 8. Ne5 {[%clk 0:02:57]}  c6 {[%clk 0:02:34]} 9. Nxc6 {[%clk 0:02:53]}  Nxc6 {[%clk 0:02:33]} 10. Qxa6 {[%clk 0:02:52]}  Nxd4 {[%clk 0:02:25]} 11. cxd5 {[%clk 0:02:48]}  Nxd5 {[%clk 0:02:14]} 12. Nc3 {[%clk 0:02:43]}  Nb4 {[%clk 0:02:01]} 13. Qa4 {[%clk 0:02:35]}  Rc8 {[%clk 0:01:53]} 14. Be3 {[%clk 0:02:19]}  Nbc2 {[%clk 0:01:31]} 15. Bxd4 {[%clk 0:02:12]}  Nxd4 {[%clk 0:01:15]} 16. Rad1 {[%clk 0:02:11]}  e5 {[%clk 0:01:04]} 17. e3 {[%clk 0:02:02]}  Rxc3 {[%clk 0:00:50]} 18. bxc3 {[%clk 0:01:53]}  Ne2+ {[%clk 0:00:50]} 19. Kh1 {[%clk 0:01:53]}  Nxc3 {[%clk 0:00:50]} 20. Rxd8 {[%clk 0:01:54]}  Nxa4 {[%clk 0:00:49]} 21. Rd7 {[%clk 0:01:53]}  Bc5 {[%clk 0:00:42]} 22. Rxa7 {[%clk 0:01:53]}  Nc3 {[%clk 0:00:41]} 23. Rc1 {[%clk 0:01:50]}  Nb5 {[%clk 0:00:35]} 24. Rd7 {[%clk 0:01:50]}  g6 {[%clk 0:00:24]} 25. a4 {[%clk 0:01:49]}  Na3 {[%clk 0:00:22]} 26. a5 {[%clk 0:01:48]}  Kg7 {[%clk 0:00:07]} 27. a6 {[%clk 0:01:47]} 1-0


[Site "https://www.chess.com"]

[Event "Titled Tuesday Blitz August 31 2021"]
[White "Dong, Bao Nghia"]
[Black "Shubenkova, Veronika"]
[WhiteFideId "12400343"]
[BlackFideId "44124040"]
[WhiteElo "2409"]
[BlackElo "1882"]
[Result "1-0"]
[Round "07"]
[TimeControl "180+1"]
[Date "2021.08.31"]
[WhiteClock "0:02:03"]
[BlackClock "0:01:22"]

1. d4 {[%clk 0:03:00]}  d5 {[%clk 0:02:58]} 2. c4 {[%clk 0:03:00]}  e6 {[%clk 0:02:52]} 3. Nc3 {[%clk 0:03:01]}  Nf6 {[%clk 0:02:52]} 4. Bg5 {[%clk 0:03:00]}  Be7 {[%clk 0:02:52]} 5. e3 {[%clk 0:03:00]}  O-O {[%clk 0:02:52]} 6. Nf3 {[%clk 0:02:59]}  b6 {[%clk 0:02:52]} 7. cxd5 {[%clk 0:02:59]}  exd5 {[%clk 0:02:52]} 8. Bd3 {[%clk 0:02:58]}  Bb7 {[%clk 0:02:52]} 9. O-O {[%clk 0:02:58]}  Nbd7 {[%clk 0:02:53]} 10. Rc1 {[%clk 0:02:58]}  Rc8 {[%clk 0:02:51]} 11. Bf5 {[%clk 0:02:57]}  h6 {[%clk 0:02:49]} 12. Bh4 {[%clk 0:02:57]}  c5 {[%clk 0:02:42]} 13. Ne5 {[%clk 0:02:54]}  Ba6 {[%clk 0:02:37]} 14. Re1 {[%clk 0:02:45]}  Rc7 {[%clk 0:02:11]} 15. Bxd7 {[%clk 0:02:20]}  Rxd7 {[%clk 0:02:11]} 16. Nxd7 {[%clk 0:02:19]}  Qxd7 {[%clk 0:02:11]} 17. dxc5 {[%clk 0:02:17]}  bxc5 {[%clk 0:02:06]} 18. Bxf6 {[%clk 0:02:17]}  Bxf6 {[%clk 0:02:07]} 19. Qxd5 {[%clk 0:02:17]}  Qxd5 {[%clk 0:02:02]} 20. Nxd5 {[%clk 0:02:17]}  Bxb2 {[%clk 0:01:59]} 21. Rxc5 {[%clk 0:02:17]}  Bd3 {[%clk 0:01:57]} 22. f3 {[%clk 0:02:16]}  Rd8 {[%clk 0:01:51]} 23. Rd1 {[%clk 0:02:13]}  Ba3 {[%clk 0:01:38]} 24. Ra5 {[%clk 0:02:05]}  Bc2 {[%clk 0:01:23]} 25. Nf6+ {[%clk 0:02:04]}  gxf6 {[%clk 0:01:22]} 26. Rxd8+ {[%clk 0:02:04]}  Bf8 {[%clk 0:01:22]} 27. Rc5 {[%clk 0:02:03]} 1-0


[Site "https://www.chess.com"]

[Event "Titled Tuesday Blitz August 31 2021"]
[White "Eswaran, Ashritha"]
[Black "Papasimakopoulos, Alexandros"]
[WhiteFideId "2080788"]
[BlackFideId "4244125"]
[WhiteElo "2454"]
[BlackElo "2352"]
[Result "0-1"]
[Round "07"]
[TimeControl "180+1"]
[Date "2021.08.31"]
[WhiteClock "0:00:21"]
[BlackClock "0:00:30"]

1. e4 {[%clk 0:03:00]}  e6 {[%clk 0:02:54]} 2. d4 {[%clk 0:03:00]}  d5 {[%clk 0:02:54]} 3. Nc3 {[%clk 0:03:00]}  Bb4 {[%clk 0:02:54]} 4. e5 {[%clk 0:03:00]}  b6 {[%clk 0:02:54]} 5. a3 {[%clk 0:02:59]}  Bf8 {[%clk 0:02:53]} 6. Qg4 {[%clk 0:02:58]}  Ba6 {[%clk 0:02:49]} 7. Bxa6 {[%clk 0:02:57]}  Nxa6 {[%clk 0:02:50]} 8. a4 {[%clk 0:02:57]}  Nb4 {[%clk 0:02:49]} 9. Qd1 {[%clk 0:02:56]}  a5 {[%clk 0:02:48]} 10. f4 {[%clk 0:02:52]}  Nh6 {[%clk 0:02:47]} 11. Nf3 {[%clk 0:02:52]}  Nf5 {[%clk 0:02:47]} 12. O-O {[%clk 0:02:51]}  h5 {[%clk 0:02:46]} 13. Ne2 {[%clk 0:02:48]}  c5 {[%clk 0:02:42]} 14. c3 {[%clk 0:02:48]}  Nc6 {[%clk 0:02:42]} 15. Ng3 {[%clk 0:02:30]}  Nxg3 {[%clk 0:02:36]} 16. hxg3 {[%clk 0:02:31]}  g6 {[%clk 0:02:37]} 17. Be3 {[%clk 0:02:25]}  Ne7 {[%clk 0:02:31]} 18. Nh2 {[%clk 0:02:23]}  Nf5 {[%clk 0:02:31]} 19. Bf2 {[%clk 0:02:23]}  Bh6 {[%clk 0:01:46]} 20. Qe2 {[%clk 0:02:12]}  c4 {[%clk 0:01:42]} 21. Rab1 {[%clk 0:02:08]}  Rc8 {[%clk 0:01:39]} 22. b4 {[%clk 0:02:03]}  cxb3 {[%clk 0:01:35]} 23. Rxb3 {[%clk 0:02:02]}  O-O {[%clk 0:01:32]} 24. g4 {[%clk 0:01:57]}  hxg4 {[%clk 0:01:29]} 25. Qxg4 {[%clk 0:01:56]}  Rc4 {[%clk 0:01:21]} 26. Rfb1 {[%clk 0:01:42]}  Qc7 {[%clk 0:01:18]} 27. Be1 {[%clk 0:01:39]}  Rxa4 {[%clk 0:01:15]} 28. Rxb6 {[%clk 0:01:38]}  Ra2 {[%clk 0:01:09]} 29. Qh3 {[%clk 0:01:36]}  Bxf4 {[%clk 0:00:54]} 30. Ng4 {[%clk 0:01:36]}  Kg7 {[%clk 0:00:54]} 31. Rb7 {[%clk 0:01:22]}  Qc4 {[%clk 0:00:29]} 32. Nf6 {[%clk 0:01:08]}  Be3+ {[%clk 0:00:22]} 33. Kh2 {[%clk 0:01:02]}  Bf4+ {[%clk 0:00:20]} 34. Kg1 {[%clk 0:00:59]}  Be3+ {[%clk 0:00:21]} 35. Kh2 {[%clk 0:00:57]}  Bh6 {[%clk 0:00:21]} 36. R1b2 {[%clk 0:00:36]}  Rxb2 {[%clk 0:00:18]} 37. Rxb2 {[%clk 0:00:36]}  Qf1 {[%clk 0:00:18]} 38. Bf2 {[%clk 0:00:23]}  Rh8 {[%clk 0:00:18]} 39. Bh4 {[%clk 0:00:18]}  Bg5 {[%clk 0:00:15]} 40. g3 {[%clk 0:00:18]}  Qxh3+ {[%clk 0:00:14]} 41. Kxh3 {[%clk 0:00:18]}  Nxh4 {[%clk 0:00:15]} 42. gxh4 {[%clk 0:00:17]}  Rxh4+ {[%clk 0:00:15]} 43. Kg3 {[%clk 0:00:17]}  Rh8 {[%clk 0:00:16]} 44. Ng4 {[%clk 0:00:17]}  Rc8 {[%clk 0:00:14]} 45. Rb3 {[%clk 0:00:16]}  a4 {[%clk 0:00:15]} 46. Ra3 {[%clk 0:00:16]}  Rc4 {[%clk 0:00:15]} 47. Nf2 {[%clk 0:00:16]}  Be7 {[%clk 0:00:15]} 48. Ra1 {[%clk 0:00:15]}  Rxc3+ {[%clk 0:00:16]} 49. Kg4 {[%clk 0:00:14]}  a3 {[%clk 0:00:17]} 50. Nd1 {[%clk 0:00:14]}  Rd3 {[%clk 0:00:17]} 51. Nf2 {[%clk 0:00:14]}  Rxd4+ {[%clk 0:00:17]} 52. Kf3 {[%clk 0:00:15]}  Rb4 {[%clk 0:00:17]} 53. Ke3 {[%clk 0:00:15]}  Rb3+ {[%clk 0:00:18]} 54. Kd4 {[%clk 0:00:15]}  Rb5 {[%clk 0:00:17]} 55. Nd3 {[%clk 0:00:15]}  Rb3 {[%clk 0:00:16]} 56. Rf1 {[%clk 0:00:14]}  Rb8 {[%clk 0:00:16]} 57. Ra1 {[%clk 0:00:13]}  Rc8 {[%clk 0:00:17]} 58. Rf1 {[%clk 0:00:13]}  Rc4+ {[%clk 0:00:17]} 59. Ke3 {[%clk 0:00:14]}  Re4+ {[%clk 0:00:17]} 60. Kd2 {[%clk 0:00:14]}  g5 {[%clk 0:00:16]} 61. Rg1 {[%clk 0:00:14]}  g4 {[%clk 0:00:16]} 62. Nf2 {[%clk 0:00:14]}  Rd4+ {[%clk 0:00:16]} 63. Ke3 {[%clk 0:00:15]}  Bc5 {[%clk 0:00:16]} 64. Ke2 {[%clk 0:00:14]}  Re4+ {[%clk 0:00:15]} 65. Nxe4 {[%clk 0:00:13]}  Bxg1 {[%clk 0:00:16]} 66. Nc3 {[%clk 0:00:12]}  Bd4 {[%clk 0:00:16]} 67. Na2 {[%clk 0:00:12]}  Bxe5 {[%clk 0:00:17]} 68. Kf2 {[%clk 0:00:12]}  Bd6 {[%clk 0:00:17]} 69. Kg2 {[%clk 0:00:13]}  f5 {[%clk 0:00:18]} 70. Kf2 {[%clk 0:00:14]}  Kf7 {[%clk 0:00:19]} 71. Kg2 {[%clk 0:00:14]}  Ke7 {[%clk 0:00:20]} 72. Kf2 {[%clk 0:00:15]}  Kd7 {[%clk 0:00:21]} 73. Kg2 {[%clk 0:00:15]}  Kc7 {[%clk 0:00:22]} 74. Kf2 {[%clk 0:00:16]}  Kb7 {[%clk 0:00:22]} 75. Kg2 {[%clk 0:00:17]}  Ka7 {[%clk 0:00:23]} 76. Kf2 {[%clk 0:00:17]}  Ka6 {[%clk 0:00:24]} 77. Kg2 {[%clk 0:00:17]}  Kb6 {[%clk 0:00:25]} 78. Kf2 {[%clk 0:00:18]}  Bc5+ {[%clk 0:00:26]} 79. Kg2 {[%clk 0:00:19]}  Kb5 {[%clk 0:00:26]} 80. Kg3 {[%clk 0:00:20]}  Kc4 {[%clk 0:00:27]} 81. Kf4 {[%clk 0:00:20]}  Bd6+ {[%clk 0:00:28]} 82. Ke3 {[%clk 0:00:20]}  Kb3 {[%clk 0:00:29]} 83. Kf2 {[%clk 0:00:20]}  Kc2 {[%clk 0:00:29]} 84. Kg2 {[%clk 0:00:20]}  Kb2 {[%clk 0:00:30]} 85. Kf2 {[%clk 0:00:21]}  Kxa2 {[%clk 0:00:30]} 0-1


[Site "https://www.chess.com"]

[Event "Titled Tuesday Blitz August 31 2021"]
[White "FGHSMN"]
[Black "Moroni, Luca Jr"]
[BlackFideId "865834"]
[WhiteElo "2677"]
[BlackElo "2491"]
[Result "0-1"]
[Round "07"]
[TimeControl "180+1"]
[Date "2021.08.31"]
[WhiteClock "0:00:29"]
[BlackClock "0:00:06"]

1. b3 {[%clk 0:03:00]}  d5 {[%clk 0:02:56]} 2. Bb2 {[%clk 0:03:01]}  Bg4 {[%clk 0:02:55]} 3. f3 {[%clk 0:03:01]}  Bf5 {[%clk 0:02:52]} 4. g4 {[%clk 0:02:59]}  Bg6 {[%clk 0:02:50]} 5. e3 {[%clk 0:02:49]}  h5 {[%clk 0:02:46]} 6. g5 {[%clk 0:02:47]}  e5 {[%clk 0:02:46]} 7. Bxe5 {[%clk 0:02:44]}  Qxg5 {[%clk 0:02:41]} 8. Bf4 {[%clk 0:02:44]}  Qd8 {[%clk 0:02:36]} 9. Nc3 {[%clk 0:02:41]}  Bd6 {[%clk 0:02:36]} 10. Nxd5 {[%clk 0:02:33]}  Qh4+ {[%clk 0:02:21]} 11. Ke2 {[%clk 0:02:32]}  Qd8 {[%clk 0:02:14]} 12. d4 {[%clk 0:02:24]}  Nc6 {[%clk 0:02:10]} 13. Bh3 {[%clk 0:02:20]}  Nf6 {[%clk 0:02:01]} 14. Nxf6+ {[%clk 0:02:18]}  Qxf6 {[%clk 0:02:00]} 15. Bxd6 {[%clk 0:02:19]}  Qxd6 {[%clk 0:02:01]} 16. Kf2 {[%clk 0:02:18]}  Qf6 {[%clk 0:01:52]} 17. Ne2 {[%clk 0:02:15]}  Qh4+ {[%clk 0:01:51]} 18. Kg2 {[%clk 0:02:13]}  Qg5+ {[%clk 0:01:50]} 19. Kf2 {[%clk 0:02:13]}  Qh4+ {[%clk 0:01:47]} 20. Kg2 {[%clk 0:02:13]}  O-O {[%clk 0:01:34]} 21. Nf4 {[%clk 0:02:11]}  Rfe8 {[%clk 0:01:27]} 22. Re1 {[%clk 0:02:07]}  Rad8 {[%clk 0:01:17]} 23. Nxg6 {[%clk 0:01:56]}  fxg6 {[%clk 0:01:12]} 24. f4 {[%clk 0:01:52]}  Kh7 {[%clk 0:01:09]} 25. c3 {[%clk 0:01:48]}  g5 {[%clk 0:00:57]} 26. Bf5+ {[%clk 0:01:40]}  g6 {[%clk 0:00:54]} 27. Bd3 {[%clk 0:01:32]}  gxf4 {[%clk 0:00:51]} 28. exf4 {[%clk 0:01:33]}  Rxe1 {[%clk 0:00:35]} 29. Qxe1 {[%clk 0:01:34]}  Qxf4 {[%clk 0:00:34]} 30. Qg3 {[%clk 0:01:32]}  Qxg3+ {[%clk 0:00:28]} 31. Kxg3 {[%clk 0:01:33]}  Re8 {[%clk 0:00:24]} 32. Kf4 {[%clk 0:01:25]}  Kh6 {[%clk 0:00:19]} 33. Rg1 {[%clk 0:01:24]}  Ne7 {[%clk 0:00:18]} 34. c4 {[%clk 0:01:23]}  Rf8+ {[%clk 0:00:18]} 35. Ke5 {[%clk 0:01:02]}  Nc6+ {[%clk 0:00:10]} 36. Kd5 {[%clk 0:00:53]}  Nb4+ {[%clk 0:00:10]} 37. Ke6 {[%clk 0:00:47]}  Nxd3 {[%clk 0:00:09]} 38. d5 {[%clk 0:00:46]}  Nc5+ {[%clk 0:00:07]} 39. Ke7 {[%clk 0:00:46]}  Rf2 {[%clk 0:00:07]} 40. Kd8 {[%clk 0:00:45]}  Rxh2 {[%clk 0:00:03]} 41. Kxc7 {[%clk 0:00:44]}  Rd2 {[%clk 0:00:03]} 42. b4 {[%clk 0:00:41]}  Na6+ {[%clk 0:00:03]} 43. Kxb7 {[%clk 0:00:40]}  Nxb4 {[%clk 0:00:04]} 44. a3 {[%clk 0:00:36]}  Nxd5 {[%clk 0:00:04]} 45. cxd5 {[%clk 0:00:35]}  Rxd5 {[%clk 0:00:05]} 46. Ra1 {[%clk 0:00:30]}  a5 {[%clk 0:00:05]} 47. Kc6 {[%clk 0:00:30]}  Rf5 {[%clk 0:00:05]} 48. Kb6 {[%clk 0:00:30]}  h4 {[%clk 0:00:05]} 49. Rh1 {[%clk 0:00:29]}  Kh5 {[%clk 0:00:06]} 0-1


[Site "https://www.chess.com"]

[Event "Titled Tuesday Blitz August 31 2021"]
[White "Filippova, Margarita"]
[Black "Skatchkov, Valery"]
[WhiteFideId "34199680"]
[BlackFideId "24195812"]
[WhiteElo "1829"]
[BlackElo "2199"]
[Result "0-1"]
[Round "07"]
[TimeControl "180+1"]
[Date "2021.08.31"]
[WhiteClock "0:00:32"]
[BlackClock "0:00:41"]

1. Nf3 {[%clk 0:03:00]}  d5 {[%clk 0:02:58]} 2. d4 {[%clk 0:03:01]}  Nf6 {[%clk 0:02:57]} 3. c4 {[%clk 0:03:01]}  c6 {[%clk 0:02:57]} 4. Nc3 {[%clk 0:03:02]}  dxc4 {[%clk 0:02:57]} 5. e3 {[%clk 0:03:01]}  g6 {[%clk 0:02:52]} 6. Bxc4 {[%clk 0:02:56]}  Bg7 {[%clk 0:02:52]} 7. O-O {[%clk 0:02:56]}  O-O {[%clk 0:02:53]} 8. Qe2 {[%clk 0:02:56]}  Bg4 {[%clk 0:02:40]} 9. Rd1 {[%clk 0:02:48]}  Nbd7 {[%clk 0:02:35]} 10. h3 {[%clk 0:02:48]}  Bxf3 {[%clk 0:02:34]} 11. Qxf3 {[%clk 0:02:47]}  Qc7 {[%clk 0:02:30]} 12. e4 {[%clk 0:02:45]}  e5 {[%clk 0:02:30]} 13. Bb3 {[%clk 0:02:28]}  exd4 {[%clk 0:02:28]} 14. Rxd4 {[%clk 0:02:15]}  Ne5 {[%clk 0:02:22]} 15. Qe2 {[%clk 0:02:09]}  Nfd7 {[%clk 0:02:14]} 16. Bf4 {[%clk 0:02:03]}  Nc5 {[%clk 0:02:14]} 17. Bc2 {[%clk 0:01:57]}  Ne6 {[%clk 0:02:13]} 18. Bxe5 {[%clk 0:01:53]}  Qxe5 {[%clk 0:02:11]} 19. Rdd1 {[%clk 0:01:50]}  Rad8 {[%clk 0:02:08]} 20. Qe3 {[%clk 0:01:40]}  Nd4 {[%clk 0:01:51]} 21. Bd3 {[%clk 0:01:38]}  Rfe8 {[%clk 0:01:41]} 22. f4 {[%clk 0:01:33]}  Qc5 {[%clk 0:01:41]} 23. Kh1 {[%clk 0:01:28]}  Qb4 {[%clk 0:01:40]} 24. Rab1 {[%clk 0:01:26]}  Qe7 {[%clk 0:01:05]} 25. e5 {[%clk 0:01:22]}  Qh4 {[%clk 0:01:03]} 26. Be4 {[%clk 0:01:10]}  Ne6 {[%clk 0:01:02]} 27. Rf1 {[%clk 0:01:03]}  Bh6 {[%clk 0:01:02]} 28. Ne2 {[%clk 0:01:01]}  Ng7 {[%clk 0:00:58]} 29. Qf3 {[%clk 0:00:59]}  Nh5 {[%clk 0:00:56]} 30. Kh2 {[%clk 0:00:53]}  Rd2 {[%clk 0:00:55]} 31. Rbe1 {[%clk 0:00:47]}  Rxe2 {[%clk 0:00:43]} 32. Qxe2 {[%clk 0:00:38]}  Bxf4+ {[%clk 0:00:42]} 33. Rxf4 {[%clk 0:00:36]}  Qxf4+ {[%clk 0:00:42]} 34. Kg1 {[%clk 0:00:34]}  Qxe5 {[%clk 0:00:41]} 35. Bf3 {[%clk 0:00:32]}  Qd4+ {[%clk 0:00:41]} 0-1


[Site "https://www.chess.com"]